Cogmind - Beta 10.2 @@@ ROGUE MODE // 2021.06.10 @ 16:39:53 Player: CrossedViper Result: Destroyed by 7V-RTL with Railgun Performance ------------- Evolutions (1) 500 Regions Visited (6) 1200 Robots Destroyed (50) 250 Value Destroyed (1031) 1031 Prototype IDs (4) 80 Alien Tech Used (0) 0 Bonus (2) 2 TOTAL SCORE: 3063 Bonus ------- High Alert Combat Kills 57 Friendly Fire -55 Cogmind --------- Core Integrity 0/400 Matter 55/300 Energy 9/100 System Corruption 0% Temperature Cool (11) Movement Core (700) Ox13 Location -8/Mines Parts ------- > --- POWER (1) -------- (None) > --- PROPULSION (3) --- (None) > --- UTILITY (2) ------ High-capacity Storage Unit Hardened Light Armor Plating > --- WEAPON (3) ------- Advanced Beam Cannon > --- INVENTORY (12) --- High-capacity Storage Unit High-capacity Storage Unit Rocket Launcher Peak State ------------ > --- POWER ------------ Cooled Ion Engine > --- PROPULSION ------- Light Treads Light Treads Light Treads > --- UTILITY ---------- Small Storage Unit Medium Storage Unit > --- WEAPON ----------- Improved EM Shotgun Improved EM Shotgun Advanced Beam Cannon > --- INVENTORY -------- Light Treads Heat Sink Small Storage Unit Hardened Light Armor Plating Hardened Light Armor Plating Hacking Suite Advanced Beam Cannon Advanced Beam Cannon Rocket Launcher Rocket Launcher [Rating: 19] Favorites ----------- Power Cooled Ion Engine Engine Cooled Ion Engine Propulsion Light Treads Treads Light Treads Leg Aluminum Leg Wheel Compact Wheel Flight Unit Improved Flight Unit Utility Small Storage Unit Storage Small Storage Unit Protection Hardened Light Armor Plating Weapon Improved EM Shotgun Energy Gun Improved EM Shotgun Energy Cannon Advanced Beam Cannon Ballistic Gun Assault Rifle Ballistic Cannon Improved Light Cannon Launcher Rocket Launcher Build | -11 -10 -10 -9 -9 -9 -8 ------- Run | Scr Mat Min Mat Min Exi Min Slots Evolved 2 | . . . 2 . . . Power . | . . . . . . . Propulsion 1 | . . . 1 . . . Utility . | . . . . . . . Weapon 1 | . . . 1 . . . Parts Attached 39 | 6 . 4 16 2 5 6 Power 3 | 1 . 1 1 . . . Engine 3 | 1 . 1 1 . . . Core . | . . . . . . . Reactor . | . . . . . . . Propulsion 12 | 2 . 2 4 1 1 2 Treads 9 | 2 . . 3 1 1 2 Leg 1 | . . 1 . . . . Wheel 1 | . . 1 . . . . Hover . | . . . . . . . Flight 1 | . . . 1 . . . Utility 7 | 1 . . 2 . 2 2 Device . | . . . . . . . Storage 4 | 1 . . 2 . 1 . Processor . | . . . . . . . Hackware . | . . . . . . . Protection 3 | . . . . . 1 2 Artifact . | . . . . . . . Weapon 17 | 2 . 1 9 1 2 2 Energy Gun 6 | 1 . . 4 . 1 . Energy Cannon 4 | . . . 2 . . 2 Ballistic Gun 3 | 1 . 1 . . 1 . Ballistic Cannon 1 | . . . 1 . . . Launcher 3 | . . . 2 1 . . Special Weapon . | . . . . . . . Impact Weapon . | . . . . . . . Slashing Weapon . | . . . . . . . Piercing Weapon . | . . . . . . . Special Melee Weapon . | . . . . . . . Unidentified Prototypes 4 | . . . 4 . . . Parts Lost 19 | . . 4 4 . 3 8 Power 3 | . . 1 1 . . 1 Propulsion 6 | . . 1 1 . 1 3 Utility 1 | . . . . . . 1 Weapon 9 | . . 2 2 . 2 3 Highest Loss Streak 8 | . . 2 2 . 3 8 Average Slot Usage (%) 89 | . 76 53 82 100 99 88 Engine 10 | . 14 7 11 11 11 7 Treads 26 | . 28 10 14 33 33 30 Leg 1 | . . 8 5 . . . Wheel 1 | . . 7 5 . . . Storage 15 | . 5 . 16 22 15 11 Protection 2 | . . . . . 6 10 Energy Gun 12 | . 14 . 8 20 11 8 Energy Cannon 8 | . . . 7 11 10 11 Ballistic Gun 3 | . 14 17 2 . . 8 Ballistic Cannon 1 | . . . 5 . . . Launcher 4 | . . . 4 1 11 . Naked Turns . | . . . . . . . Heaviest Build 56 | 11 11 7 32 31 56 55 Greatest Support 60 | 3 3 16 60 60 60 60 Greatest Overweight (x) 3 | 3 3 . 1 . . 1 Average Overweight (x) . | 1 2 . . . . . Largest Inventory Capacity 16 | 6 6 4 10 10 16 12 Average Capacity 9 | 5 4 4 8 10 11 12 Most Carried 11 | 2 1 3 10 10 11 8 Average Carried 7 | . . 2 7 9 10 6 Final Capacity 12 | 6 4 4 10 10 12 12 Final Carried 10 | . 1 3 9 10 8 3 Class Distribution -------------------- 39% | Mutant 32% | Scavenger-Gunner 21% | Scavenger-Mutant 6% | Scavenger-Tank Dominant Class ---------------- Mutant | -10/Materials Mutant | -10/Mines Scavenger-Gunner | -9/Materials Scavenger-Gunner | -9/Mines Mutant | -9/Exiles Scavenger-Tank | -8/Mines Resources | -11 -10 -10 -9 -9 -9 -8 ----------- Run | Scr Mat Min Mat Min Exi Min Matter Collected 816 | 230 90 98 276 103 19 . Remotely . | . . . . . . . Salvage Created 1431 | . 241 163 832 132 63 . Parts 100 | . 18 8 55 16 3 . Haulers Intercepted 3 | . . . 3 . . . Recyclers Shooed 2 | . . . . 2 . . Parts Field Recycled . | . . . . . . . Retrieved Matter . | . . . . . . . Parts Self-Destructed . | . . . . . . . Prevented . | . . . . . . . Kills | -11 -10 -10 -9 -9 -9 -8 ------- Run | Scr Mat Min Mat Min Exi Min Combat Hostiles Destroyed 37 | . 4 3 18 6 6 . Guns 11 | . 4 3 . 2 2 . Cannons 9 | . . . 9 . . . AOE 17 | . . . 9 4 4 . Classes Destroyed 12 | . 3 2 5 . 2 . Worker 3 | . . . 3 . . . Builder 1 | . 1 . . . . . Tunneler 2 | . . . 1 1 . . Hauler 3 | . . . 3 . . . Recycler 4 | . . 1 3 . . . Operator 3 | . . . 3 . . . Watcher 2 | . 1 . 1 . . . Swarmer 12 | . . 2 6 4 . . Grunt 12 | . 4 1 7 . . . Sentry 7 | . . . 5 2 . . Zionite 1 | . . . . . 1 . Assembled 6 | . . . . . 6 . Best Kill Streak 12 | . 5 2 12 4 4 . Combat Bots Only 7 | . 3 2 7 4 4 . Max Kills in Single Turn 6 | . 2 1 6 3 2 . Gunslinging . | . . . . . . . Exploded 3 | . . . 3 3 2 . Melee . | . . . . . . . Uniques/NPCs Destroyed . | . . . . . . . Combat | -11 -10 -10 -9 -9 -9 -8 -------- Run | Scr Mat Min Mat Min Exi Min Damage Taken 3274 | . 269 338 555 170 357 1585 Core 501 | . 17 60 86 32 23 283 Absorbed by Shields . | . . . . . . . Core Remaining (%) 84 | 100 . 69 . . . . Volleys Fired 143 | . 20 24 47 7 10 35 Largest 3 | . 2 2 3 3 2 2 Hottest 158 | . 60 60 158 158 68 91 Shots Fired 242 | . 40 38 80 17 14 53 Gun 141 | . 40 38 25 10 8 20 Cannon 83 | . . . 45 5 . 33 Launcher 18 | . . . 10 2 6 . Special . | . . . . . . . Kinetic 113 | . 20 36 35 . 4 18 Thermal 67 | . . . 29 5 . 33 Explosive 18 | . . . 10 2 6 . Electromagnetic 44 | . 20 2 6 10 4 2 Robot Hit Streak 18 | . 5 9 10 7 3 18 Robot Miss Streak 5 | . 1 5 4 1 4 2 Penetration Max . | . . . . . . . Secondary Targets 3 | . 1 1 . . 1 . Max Gunslinging Chain 1 | . 1 1 . . 1 . Shots Hit Robots 161 | . 28 25 48 11 6 43 Core Hits 90 | . 12 9 43 10 10 6 Critical Hits 14 | . . . 4 . . 10 Critical Kills 1 | . . . 1 . . . Critical Parts Destroyed 6 | . . . 2 . . 4 Melee Attacks . | . . . . . . . Impact . | . . . . . . . Slashing . | . . . . . . . Piercing . | . . . . . . . Sneak Attacks . | . . . . . . . Combat Hostiles . | . . . . . . . Follow-up Attacks . | . . . . . . . Damage Inflicted 4322 | . 397 309 2016 384 416 800 Guns 1280 | . 338 309 244 125 80 184 Cannons 1303 | . . . 685 21 . 597 Explosions 1704 | . 59 . 1087 222 336 . Melee . | . . . . . . . Ramming 35 | . . . . 16 . 19 Kinetic 1031 | . 145 298 400 . 12 176 Thermal 1090 | . 59 . 413 21 . 597 Explosive 1645 | . . . 1087 222 336 . Electromagnetic 521 | . 193 11 116 125 68 8 Impact . | . . . . . . . Slashing . | . . . . . . . Piercing . | . . . . . . . Highest Corruption . | . . . . . . . Average Corruption . | . . . . . . . Corruption Purged . | . . . . . . . Overload Shots . | . . . . . . . Overflow Damage 88 | . . . 43 . 45 . Projectiles . | . . . . . . . Explosions 88 | . . . 43 . 45 . Melee . | . . . . . . . Knockbacks 2 | . . . 2 . . . Impact . | . . . . . . . Kinetic 2 | . . . 2 . . . Secondary . | . . . . . . . Self-Inflicted Damage 66 | . . . 26 . 40 . Shots 2 | . . . 1 . 1 . Rammed 6 | . . . . 2 . 4 Targets Rammed 7 | . . . . 3 . 4 Kicked . | . . . . . . . Crushed 1 | . . . . 1 . . Highest Temperature 402 | . 70 4 384 353 24 402 Average Temperature 112 | . 36 3 118 176 12 151 Received Heat Transfer 672 | . 150 129 141 54 . 198 Effects 7 | . . . 5 . . 2 Energy Bleed 1 | . . . 1 . . . Interference 5 | . . . 3 . . 2 Matter Decay 1 | . . . 1 . . . Siege Activations . | . . . . . . . Robots Corrupted . | . . . . . . . Combat Hostiles . | . . . . . . . Parts Fried 2 | . 1 . . 1 . . Impact Corruptions . | . . . . . . . Robots Melted . | . . . . . . . Combat Hostiles . | . . . . . . . Parts Melted . | . . . . . . . Heat Transferred 1024 | . 150 . 779 37 . 58 Parts Sabotaged . | . . . . . . . Parts Stolen . | . . . . . . . Parts Stripped . | . . . . . . . Power Chain Reactions 1 | . 1 . . . . . Missiles Intercepted . | . . . . . . . Alert | -11 -10 -10 -9 -9 -9 -8 ------- Run | Scr Mat Min Mat Min Exi Min Peak Influence 540 | . 157 101 540 248 . . Initial 193 | . . 61 39 193 . . Average 143 | . 66 92 276 142 . . Maximum Alert Level 2 | . . . 2 1 . . Low Security (%) 76 | 100 100 100 39 80 . 100 Level 1 17 | . . . 37 19 . . Level 2 6 | . . . 23 . . . Level 3 . | . . . . . . . Level 4 . | . . . . . . . Level 5 . | . . . . . . . High Security . | . . . . . . . Max Security . | . . . . . . . Squads Dispatched 5 | . 2 . 3 . . . Investigation . | . . . . . . . Extermination . | . . . . . . . Reinforcement 5 | . 2 . 3 . . . Assault . | . . . . . . . Garrison . | . . . . . . . Intercept . | . . . . . . . Construction Impeded . | . . . . . . . Haulers Reinforced . | . . . . . . . Stealth | -11 -10 -10 -9 -9 -9 -8 --------- Run | Scr Mat Min Mat Min Exi Min Distress Signals 2 | . . . 2 . . . Communications Jammed . | . . . . . . . Distress Signals . | . . . . . . . Times Spotted 56 | . 8 7 31 3 6 1 Peak Tracking Total 9 | . 4 3 7 2 9 1 Tactical Retreats 5 | . 1 1 3 . . . Traps | -11 -10 -10 -9 -9 -9 -8 ------- Run | Scr Mat Min Mat Min Exi Min Traps Triggered . | . . . . . . . Indirectly . | . . . . . . . Trap Hack Attempts . | . . . . . . . Triggered . | . . . . . . . Disarmed . | . . . . . . . Reprogrammed . | . . . . . . . Reused . | . . . . . . . Traps Extracted . | . . . . . . . Installed . | . . . . . . . Triggered . | . . . . . . . Machines | -11 -10 -10 -9 -9 -9 -8 ---------- Run | Scr Mat Min Mat Min Exi Min Machines Disabled 7 | . . . 3 . 4 . Max in Single Turn 2 | . . . 1 . 2 . Machines Sabotaged . | . . . . . . . Garrisons Compromised . | . . . . . . . Overloaded Fab Kills . | . . . . . . . Fab Network Shutdowns . | . . . . . . . Hacking | -11 -10 -10 -9 -9 -9 -8 --------- Run | Scr Mat Min Mat Min Exi Min Machines Accessed 2 | . 1 . . . 1 . Terminals 1 | . 1 . . . . . Fabricators . | . . . . . . . Repair Stations . | . . . . . . . Recycling Units . | . . . . . . . Scanalyzers . | . . . . . . . Garrison Access . | . . . . . . . Total Hacks 8 | . 7 . . . 1 . Successful 3 | . 2 . . . 1 . Failed 5 | . 5 . . . . . Catastrophic 1 | . 1 . . . . . Database Lockouts . | . . . . . . . Manual 7 | . 7 . . . . . Terminals 7 | . 7 . . . . . Fabricators . | . . . . . . . Repair Stations . | . . . . . . . Recycling Units . | . . . . . . . Scanalyzers . | . . . . . . . Garrison Access . | . . . . . . . Terminal Hacks 3 | . 2 . . . 1 . Record 1 | . . . . . 1 . Part Schematic 1 | . 1 . . . . . Branch Access Points 1 | . 1 . . . . . Fabricator Hacks . | . . . . . . . Repair Station Hacks . | . . . . . . . Recycling Unit Hacks . | . . . . . . . Scanalyzer . | . . . . . . . Garrison Access Hacks . | . . . . . . . Unauthorized Hacks . | . . . . . . . Terminals . | . . . . . . . Fabricators . | . . . . . . . Repair Stations . | . . . . . . . Recycling Units . | . . . . . . . Scanalyzers . | . . . . . . . Garrison Access . | . . . . . . . Data Cores Recovered . | . . . . . . . Used . | . . . . . . . Hacking Detections 1 | . 1 . . . . . Full Trace Events 1 | . 1 . . . . . Feedback Events . | . . . . . . . Feedback Blocked . | . . . . . . . Robot Schematics Acquired . | . . . . . . . Robots Built . | . . . . . . . Matter . | . . . . . . . Time . | . . . . . . . Total Robot Build Rating . | . . . . . . . Part Schematics Acquired 1 | . 1 . . . . . Parts Built . | . . . . . . . Matter . | . . . . . . . Time . | . . . . . . . Total Part Build Rating . | . . . . . . . Parts Repaired . | . . . . . . . Time . | . . . . . . . Parts Recycled . | . . . . . . . Recycled Matter . | . . . . . . . Retrieved Matter . | . . . . . . . Retrieved Components . | . . . . . . . Parts Scanalyzed . | . . . . . . . Part Schematics Acquired . | . . . . . . . Parts Damaged . | . . . . . . . Bothacking | -11 -10 -10 -9 -9 -9 -8 ------------ Run | Scr Mat Min Mat Min Exi Min Used RIF Installer . | . . . . . . . Robots Hacked . | . . . . . . . Non-combat . | . . . . . . . Combat . | . . . . . . . Robot Hacks Applied . | . . . . . . . Relay Couplers Released . | . . . . . . . Robots Rewired . | . . . . . . . Allies Hacked . | . . . . . . . Hacks Repelled . | . . . . . . . Allies | -11 -10 -10 -9 -9 -9 -8 -------- Run | Scr Mat Min Mat Min Exi Min Total Allies . | . . . . . . . Largest Group . | . . . . . . . Highest-Rated Group . | . . . . . . . Highest-Rated Ally . | . . . . . . . Total Orders . | . . . . . . . Ally Attacks . | . . . . . . . Total Damage . | . . . . . . . Kills . | . . . . . . . Allies Corrupted . | . . . . . . . Allies Melted . | . . . . . . . Intel | -11 -10 -10 -9 -9 -9 -8 ------- Run | Scr Mat Min Mat Min Exi Min Robot Analysis Total . | . . . . . . . Derelict Logs Recovered 2 | . . 2 . . . . Drone Launches . | . . . . . . . Drone Recoveries . | . . . . . . . Exploration | -11 -10 -10 -9 -9 -9 -8 ------------- Run | Scr Mat Min Mat Min Exi Min Turns Passed 2924 | 72 188 224 603 784 747 306 Spaces Moved 1440 | 44 71 150 339 468 359 9 Core 141 | 44 71 26 . . . . Treads 984 | . . . 148 468 359 9 Legs 3 | . . 3 . . . . Wheels 312 | . . 121 191 . . . Hover . | . . . . . . . Flight . | . . . . . . . Fastest Speed 50 | 50 150 50 100 160 160 160 Average Speed 145 | 144 174 91 129 160 160 162 Slowest Speed 200 | 200 200 120 160 160 160 180 Overloaded Moves . | . . . . . . . Propulsion Burnouts . | . . . . . . . Robots Hopped . | . . . . . . . Cave-ins Triggered . | . . . . . . . Exploration Rate (%) 35 | 4 29 43 38 63 66 4 Regions Visited 6 Branch Regions 4 Pre-discovered Areas 2 | . . 1 . . 1 . Known Exits Taken 2 | . 1 . 1 . . . Unknown Exits Taken 4 | 1 . 1 . 1 1 . Scrap Searched 1 | . . . . 1 . . Spaces Dug 35 | . . . 15 20 . . Terrain Destroyed 126 | . . . 86 20 20 . Melee . | . . . . . . . Projectile 1 | . . . 1 . . . AOE 125 | . . . 85 20 20 . Terrain Rammed . | . . . . . . . Walls Destroyed . | . . . . . . . Machines Disabled . | . . . . . . . Actions | -11 -10 -10 -9 -9 -9 -8 --------- Run | Scr Mat Min Mat Min Exi Min Total 2033 | 51 96 199 431 491 519 246 Wait 360 | . 5 19 5 2 140 189 Move 1434 | 43 70 149 338 467 358 9 Hop . | . . . . . . . Pick Up 26 | 2 . 2 14 5 3 . Fast Attach 18 | 4 . 4 10 . . . Attach 15 | 2 . . 5 . 4 4 Detach 2 | . 1 . 1 . . . Swap 7 | . . . 2 2 1 2 Drop 21 | . . 1 9 5 3 3 Fire 143 | . 20 24 47 7 10 35 Melee . | . . . . . . . Ram . | . . . . . . . Kick . | . . . . . . . Crush 7 | . . . . 3 . 4 Escape Stasis . | . . . . . . . Rewire . | . . . . . . . Trap . | . . . . . . . Miscellaneous . | . . . . . . . Route ------- -11/Scrapyard -10/Materials -10/Mines (discovered 2 exits: *Mat x2) -9/Materials (discovered 2 exits: [*Mat] / *Min) -9/Mines -9/Exiles -8/Mines History --------- Turn | Location | Event 27 | -11/Scrapyard | Discovered new exit (range 16) 73 | -11/Scrapyard | Entered Materials 81 | -10/Materials | Identified exit to Mines 261 | -10/Materials | Entered Mines 317 | -10/Mines | Build established: Mutant 369 | -10/Mines | Learned location of Storage (-7) 452 | -10/Mines | Discovered new exit (range 6) 456 | -10/Mines | Received a Rocket Launcher from a helpful Derelict 466 | -10/Mines | Learned location of 1 exit from Materials 479 | -10/Mines | Discovered new exit (range 6) 485 | -10/Mines | Entered Materials 485 | -9/Materials | Evolved 2 slots: Propulsion x1, Weapon x1 486 | -9/Materials | Identified exit to Mines 829 | -9/Materials | Destroyed 7 combat bots 894 | -9/Materials | Discovered new exit (range 15) 1088 | -9/Materials | Entered Mines 1393 | -9/Mines | Build established: Scavenger-Gunner 1627 | -9/Mines | Assembled infested the area 1632 | -9/Mines | Assisted by a Guerilla fighting off Assembled 1865 | -9/Mines | Deemed a non-threat by the Exiles lab entrance 1865 | -9/Mines | Discovered new exit (range 5) 1872 | -9/Mines | Entered Exiles 1911 | -9/Exiles | Met 8R-AWN 1938 | -9/Exiles | Met EX-HEX 1999 | -9/Exiles | Met EX-DEC 2012 | -9/Exiles | Learned location of Zion (-7) 2085 | -9/Exiles | Visited The Gauntlet 2099 | -9/Exiles | Build established: Scavenger-Mutant 2456 | -9/Exiles | Build established: Mutant 2530 | -9/Exiles | Attacked by the Exiles 2606 | -9/Exiles | Discovered new exit (range 10) 2619 | -9/Exiles | Entered Mines 2624 | -8/Mines | Lost 3 parts (1n2w) 2801 | -8/Mines | 7V-RTL came to Exiles' defense 2851 | -8/Mines | Core integrity fell below 50% 2896 | -8/Mines | Core integrity fell below 20% 2925 | -8/Mines | Destroyed by 7V-RTL with Railgun Last Messages --------------- 02890_ Destroyed Dispersion Rifle. 02893_ Penetrated by Slug. 02893_ Slug penetrates Wall. 02894_ 7V-RTL suffers critical hit. 02894_ Destroyed Prototype Storage. 02895_ Penetrated by Slug. 02901_ U-05 Engineer builds a Wall. 02903_ Penetrated by Slug. 02903_ Lgt. Treads destroyed. 02905_ K-01 Serf collects debris. 02905_ Penetrated by Slug. 02906_ 7V-RTL suffers critical hit. 02907_ Penetrated by Slug. 02911_ Lgt. Treads destroyed. 02913_ Penetrated by Slug. 02913_ Slug penetrates Earth. 02918_ 7V-RTL suffers critical hit. 02919_ Penetrated by Slug. 02919_ Slug penetrates Earth. 02923_ Penetrated by Slug. Map ----- +----------------------------------------------------+ | | | | | | | | | | | | | | | | | | | | | | | | | | | | | | | | | | | | | | | | | ????????????????????????????# ???????????????????? | | ???????????????????????????# ????##??????????????? | | ?????????????????????######;###; ##?????????????? | | ????????????????????##; ## #?????????????? | | ????????????????#####; #?????????????? | | ????????????????# ; Y@ ;;[*; ????????? | | ????????????????####; ###==#?????????????? | | ?????????????????# # = ######??????????????????? | | ?????????????????#??##!=##???????????????????????? | | ?????????????????????#;##????????????????????????? | | ????????????????????# #??????????????????????????? | | ???????????????????#;#???????????????????????????? | | ???????????????????# ????????????????????????????? | | ??????????????????? ?????????????????????????????? | | ??????????????????u ?????????????????????????????? | | ????????????????? ??????????????????????????????? | | ???????????????? ???????????????????????????????? | | ??????????????? ????????????????????????????????? | | ??????????????#??????????????????????????????????? | | ?????????????????????????????????????????????????? | | ?????????????????????????????????????????????????? | | ?????????????????????????????????????????????????? | | ?????????????????????????????????????????????????? | | ?????????????????????????????????????????????????? | | ?????????????????????????????????????????????????? | | ?????????????????????????????????????????????????? | | ?????????????????????????????????????????????????? | | ?????????????????????????????????????????????????? | | ?????????????????????????????????????????????????? | | ?????????????????????????????????????????????????? | +----------------------------------------------------+ Best States ------------- Heat Dissipation 28 Energy Generation 14 Energy Capacity 280 Matter Stores 300 Matter Capacity 300 Sight Range 16 Terrain Scan Density 10 Armor Coverage 150 Evasion (%) 50 Recoil Reduction 3 Item Schematics ----------------- Hcp. Storage Unit | -10/Materials | Hacked Robot Schematics ------------------ None Fabricated ------------ Nothing Alien Tech Used ----------------- None Achievements -------------- None Challenges ------------ None Game ------ Seed SuspensionDerelictNanovents Manual? 0 Play Time 00:15:47 Cumulative 437.7 hours Start 2021.06.10 @ 16:26:18 End 2021.06.10 @ 16:39:53 Sessions 1 Manual Loads 0 Difficulty Rogue Special Mode None Game No. 335 Rogue 328 Adventurer 0 Explorer 7 Win Type - Total 20 Types 8/2/9/1/0/0/0/0/0 Lore% 81 Gallery% 94 Achievement% 78 Wizard Run 0 Options --------- ASCII 0 Keyboard 0 Movement Mouse Keybinds 0 Fullscreen 1 Font 18/X11Bold Map View 76x50 Tactical HUD 1 Map Filters NONE Filters NONE Steam 1 RUN: ef5d755f-f6ab-4184-b9d9-5b7082f0a850